bitfinex/quotes_SOLUSD_20250722
["timestamp","ask_amount","ask_price","bid_price","bid_amount"]
[1753206300606,0.06,202.64,202.63,115.66649871]
[1753206301947,0.06,202.64,202.63,110.73139532]
[1753206302116,0.06,202.64,202.63,27.66]
[1753206304008,14.82940962,202.64,202.6,27.66]
[1753206304348,9.83454978,202.62,202.57,27.66]
[1753206304637,9.83454978,202.61,202.57,27.66]
[1753206304815,9.83454978,202.61,202.56,27.66]
[1753206305019,9.83454978,202.62,202.56,37.49454978]
[1753206305235,9.83454978,202.57,202.52,0.03]
[1753206305412,9.83454978,202.54,202.52,0.03]
[1753206305611,9.83454978,202.53,202.52,0.03]
[1753206306035,14.77208989,202.53,202.52,0.03]
[1753206306410,15.33208989,202.53,202.52,0.03]
[1753206306609,41.33208989,202.53,202.52,0.03]
[1753206307140,30.93754011,202.53,202.52,0.03]
[1753206307530,9.83454978,202.56,202.52,0.03]
[1753206307732,9.83454978,202.57,202.52,0.03]
[1753206308133,17.27712508,202.58,202.52,0.69]
[1753206308327,9.83454978,202.53,202.52,0.03]
[1753206308936,26.0,202.5,202.44,0.03]
[1753206309142,9.83454978,202.45,202.44,0.03]
[1753206310240,5.49949123,202.45,202.43,1e-08]
[1753206310450,9.83454978,202.44,202.43,1e-08]
[1753206310633,4.93949123,202.45,202.43,1e-08]
[1753206311217,4.9390033,202.47,202.43,1e-08]
[1753206311447,32.49400281,202.49,202.44,10.49454978]
[1753206312467,4.93870281,202.49,202.44,10.49454978]
[1753206312617,4.9382641,202.51,202.47,9.83454978]
[1753206312929,4.93780386,202.52,202.48,10.49454978]
[1753206313249,4.93723285,202.55,202.5,14.82960451]
[1753206313643,4.93723285,202.55,202.51,0.66]
[1753206313837,4.93723285,202.55,202.51,15.48960451]
[1753206314212,4.93680884,202.56,202.51,15.48960451]
[1753206314418,19.76641335,202.56,202.51,0.66]
[1753206314839,19.76641335,202.56,202.49,14.82960451]
[1753206315225,19.76641335,202.56,202.5,14.82960451]
[1753206315635,4.93680884,202.56,202.52,14.82960451]
[1753206315918,4.93680884,202.56,202.52,15.48960451]
[1753206316420,4.93656513,202.57,202.53,14.82960451]
[1753206316841,4.93656513,202.57,202.54,0.66]
[1753206317042,14.82960451,202.59,202.51,0.03]
[1753206317043,4.93631836,202.59,202.55,15.48960451]
[1753206317249,4.93631836,202.59,202.52,16.78468397]
[1753206317250,4.93631836,202.59,202.56,15.53960451]
[1753206317545,4.93631836,202.59,202.56,0.71]
[1753206317732,4.93631836,202.59,202.55,14.82960451]
[1753206317925,4.93631836,202.59,202.55,15.53960451]
[1753206318123,4.93631836,202.59,202.56,0.71]
[1753206318338,4.93583415,202.6,202.54,14.82960451]
[1753206318535,14.82960451,202.58,202.52,27.66]
[1753206318742,4.93583415,202.6,202.52,27.66]
[1753206318743,30.93583415,202.6,202.55,14.82960451]
[1753206318941,30.93583415,202.6,202.55,0.71]
[1753206318942,45.76543866,202.6,202.55,0.71]
[1753206319321,19.76513156,202.62,202.56,15.53960451]
[1753206319523,19.76513156,202.62,202.58,14.82960451]
[1753206319524,4.93552705,202.62,202.58,14.82960451]
[1753206319747,14.88960451,202.64,202.53,70.58684554]
[1753206319748,4.99509242,202.64,202.59,15.53960451]
[1753206320062,4.99490291,202.64,202.61,14.82960451]
[1753206320422,0.06,202.64,202.61,15.53960451]
[1753206320621,0.06,202.64,202.61,0.71]
[1753206321124,0.06,202.64,202.61,15.53960451]
[1753206321421,0.06,202.64,202.58,29.65]
[1753206321740,0.06,202.64,202.62,14.82960451]
[1753206321930,0.06,202.64,202.63,14.82960451]
[1753206322133,0.06,202.64,202.63,15.53960451]
[1753206322525,0.06,202.64,202.63,62.11645005]
[1753206325450,0.06,202.64,202.63,94.71155344]
[1753206325757,0.06,202.67,202.66,72.43468397]
[1753206326058,0.06,202.72,202.71,16.78468397]
[1753206326226,0.06,202.72,202.71,115.06645005]
[1753206326432,0.06,202.72,202.71,115.77645005]
[1753206326846,0.06,202.72,202.71,120.70960578]
[1753206327239,0.06,202.72,202.71,115.77645005]
[1753206328137,0.06,202.72,202.71,120.70960578]
[1753206328930,0.06,202.73,202.72,74.17684554]
[1753206329135,0.06,202.73,202.72,75.28013677]
[1753206329349,0.06,202.73,202.72,89.61645005]
[1753206329858,0.06,202.73,202.72,74.78684554]
[1753206330063,0.06,202.73,202.72,104.93934579]
[1753206330233,0.06,202.73,202.72,104.44605456]
[1753206330845,0.06,202.73,202.72,109.37896695]
[1753206331730,0.06,202.73,202.72,113.22042456]
[1753206331960,0.16,202.84,202.82,0.14216157]
[1753206332152,0.16,202.84,202.83,62.11645005]
[1753206332462,0.16,202.84,202.83,89.61645005]
[1753206332705,0.16,202.84,202.83,89.47428848]
[1753206333336,0.16,202.84,202.83,84.43768657]
[1753206334741,0.16,202.84,202.83,90.00310899]
[1753206335048,1.656,202.98,202.91,29.65]
[1753206335049,17.24392766,202.97,202.91,29.65]
[1753206335246,17.24392766,202.97,202.93,9.7930026]
[1753206335836,4.92683647,202.97,202.95,9.7930026]
[1753206336356,12.31330154,203.04,202.96,27.28768657]
[1753206336562,12.31330154,203.04,202.96,0.71]
[1753206336764,4.92489534,203.05,203.0,9.7930026]
[1753206336970,4.92465281,203.06,203.01,9.7930026]
[1753206337174,12.31223836,203.05,202.97,29.65]
[1753206337348,12.98223836,203.05,202.99,14.75466406]
[1753206337548,27.73690242,203.05,202.99,14.75466406]
[1753206337976,27.73690242,203.05,202.99,15.46466406]
[1753206337977,27.06690242,203.05,202.99,15.46466406]
[1753206338184,12.31223836,203.05,203.0,14.75466406]
[1753206338358,0.06,203.04,203.0,14.75466406]
[1753206338681,0.06,203.04,202.99,0.71]
[1753206338682,0.06,203.04,202.99,15.46466406]
[1753206338980,0.73,203.04,202.98,14.75466406]
[1753206339155,4.92538048,203.03,202.98,14.75466406]
[1753206339675,4.92538048,203.03,202.99,14.75466406]
[1753206339856,0.06,203.04,203.02,14.75466406]
[1753206340052,0.06,203.04,203.03,45.11466406]
[1753206340248,0.06,203.04,203.03,62.53404764]
[1753206340871,0.06,203.04,203.03,45.25682563]
[1753206341351,0.06,203.04,203.01,29.65]
[1753206341684,14.81466406,203.04,202.98,44.40466406]
[1753206341853,14.75466406,203.03,202.98,29.65]
[1753206342172,0.06,203.04,203.0,14.75466406]
[1753206342351,0.06,203.04,203.03,44.40466406]
[1753206342555,0.06,203.04,203.03,89.32404764]
[1753206342755,0.06,203.04,203.03,90.03404764]
[1753206343652,0.06,203.04,203.03,116.03404764]
[1753206343982,0.06,203.04,203.03,115.5415096]
[1753206344290,0.06,203.04,203.03,72.04682563]
[1753206344583,41.8451238,203.13,203.06,16.78468397]
[1753206344584,4.92295574,203.13,203.06,16.78468397]
[1753206344759,4.92295574,203.13,203.12,44.40466406]
[1753206345081,7.9289,203.18,203.12,44.40466406]
[1753206345082,4.92198651,203.17,203.12,45.11466406]
[1753206345296,4.92198651,203.17,203.14,14.75466406]
[1753206345593,4.92198651,203.17,203.14,44.40466406]
[1753206345768,4.92198651,203.17,203.16,14.75466406]
[1753206346095,4.92101766,203.21,203.16,44.40466406]
[1753206346274,4.92101766,203.21,203.17,14.75466406]
[1753206346599,4.92101766,203.21,203.17,51.08013919]
[1753206346785,4.92101766,203.21,203.17,44.40466406]
[1753206346986,31.97822588,203.21,203.14,27.99227133]
[1753206347303,31.97822588,203.21,203.15,44.40466406]
[1753206347967,17.22356182,203.21,203.16,51.08013919]
[1753206348296,17.22356182,203.21,203.14,42.25466406]
[1753206348503,17.22356182,203.21,203.14,27.5]
[1753206348504,14.75466406,203.16,203.14,27.5]
[1753206348680,26.0,203.12,203.04,15.44466406]
[1753206348861,14.75466406,203.13,203.07,14.75466406]
[1753206349061,26.0,203.14,203.04,0.69]
[1753206349062,14.75466406,203.11,203.04,15.44466406]
[1753206349291,4.9234405,203.11,203.07,14.75466406]
[1753206349466,4.9234405,203.11,203.07,45.09466406]
[1753206349661,14.75466406,203.1,203.04,14.75466406]
[1753206349865,14.75466406,203.07,203.0,0.69]
[1753206350070,14.75466406,203.05,202.99,14.75466406]
[1753206350267,26.66,203.09,202.98,14.75466406]
[1753206350268,14.75466406,203.04,202.98,14.75466406]
[1753206350493,14.75466406,203.04,202.98,44.40466406]
[1753206350792,14.75466406,203.01,202.96,29.65]
[1753206351294,17.24053002,203.01,202.96,30.34]
[1753206351511,17.24053002,203.01,202.96,29.65]
[1753206351512,31.99519408,203.01,202.96,29.65]
[1753206352383,14.75466406,203.0,202.95,29.65]
[1753206352803,17.90053002,203.01,202.95,29.65]
[1753206353109,31.99519408,203.01,202.95,44.40466406]
[1753206353305,19.68101511,202.99,202.93,14.75466406]
[1753206353516,4.92635105,202.99,202.94,44.40466406]
[1753206353722,4.92635105,202.99,202.94,45.09466406]
[1753206354090,15.41466406,202.98,202.94,29.65]
[1753206354299,15.41466406,202.97,202.94,29.65]
[1753206354496,0.66,202.96,202.93,29.65]
[1753206354813,17.24222867,202.99,202.92,14.75466406]
[1753206354994,14.75466406,202.97,202.91,44.40466406]
[1753206355317,19.68198606,202.95,202.89,14.75466406]
[1753206355487,14.75466406,202.94,202.91,0.03]
[1753206355683,14.75466406,202.93,202.91,0.03]
[1753206356310,14.75466406,202.92,202.91,0.03]
[1753206356510,14.75466406,202.88,202.82,0.69]
[1753206356892,14.75466406,202.88,202.82,0.72]
[1753206357091,14.75466406,202.89,202.83,14.75466406]
[1753206357316,4.92829333,202.91,202.82,15.47466406]
[1753206357487,14.75466406,202.9,202.83,14.75466406]
[1753206357808,4.92829333,202.91,202.88,14.75466406]
[1753206358714,5.58829333,202.91,202.84,30.34]
[1753206359012,4.92829333,202.91,202.87,14.75466406]
[1753206359393,4.92805046,202.92,202.87,14.75466406]
[1753206359583,6.12,202.96,202.87,14.75466406]
[1753206359584,4.92635105,202.99,202.91,14.75466406]
[1753206359788,14.75466406,202.98,202.91,0.03]
[1753206360004,4.92635105,202.99,202.95,14.75466406]
[1753206360211,4.92635105,202.99,202.95,15.44466406]
[1753206360587,4.92635105,202.99,202.94,14.75466406]
[1753206360787,4.92635105,202.99,202.94,15.44466406]
[1753206361507,14.75466406,202.95,202.91,0.03]
[1753206361715,14.75466406,202.92,202.91,0.03]
[1753206361912,17.24222867,202.99,202.91,0.03]
[1753206361913,34.02691264,202.99,202.91,0.03]
[1753206362086,17.90222867,202.99,202.94,14.75466406]
[1753206362288,17.90222867,202.99,202.91,0.03]
[1753206362289,14.75466406,202.96,202.91,0.03]
[1753206362488,14.75466406,202.94,202.91,0.03]
[1753206362692,0.66,202.98,202.92,14.75466406]
[1753206362888,15.41466406,202.98,202.92,14.75466406]
[1753206363204,4.92683647,202.97,202.92,14.75466406]
[1753206363409,4.92683647,202.97,202.95,14.75466406]
[1753206363608,4.92610837,203.0,202.96,14.75466406]
[1753206363801,4.92610837,203.0,202.95,15.44466406]
[1753206364292,4.92610837,203.0,202.96,14.75466406]
[1753206364614,4.92610837,203.0,202.95,0.69]
[1753206364795,4.92610837,203.0,202.95,15.44466406]
[1753206365206,4.92586572,203.01,202.96,14.75466406]
[1753206365413,31.99519408,203.01,202.95,15.44466406]
[1753206365614,31.99519408,203.01,202.91,29.68]
[1753206365615,14.75466406,203.0,202.94,14.75466406]
[1753206365813,17.90053002,203.01,202.94,29.65]
[1753206365988,14.75466406,203.0,202.94,44.40466406]
[1753206366192,14.75466406,203.0,202.94,29.65]
[1753206366802,17.90053002,203.01,202.94,44.40466406]
[1753206367000,14.75466406,203.0,202.94,44.40466406]
[1753206367201,4.92659375,202.98,202.93,14.75466406]
[1753206367403,4.92659375,202.98,202.95,14.75466406]
[1753206368120,4.92659375,202.98,202.94,45.09466406]
[1753206368322,4.92659375,202.98,202.94,29.65]
[1753206369095,0.66,202.97,202.93,11.4]
[1753206369302,19.68222885,202.94,202.93,11.4]
[1753206369505,19.68222885,202.94,202.91,0.03]
[1753206369716,14.75466406,202.93,202.91,0.03]
[1753206370428,15.41466406,202.92,202.91,1e-08]
[1753206371222,0.66,202.92,202.91,1e-08]
[1753206371520,4.92805046,202.92,202.91,1e-08]
[1753206371822,19.68271452,202.92,202.91,1e-08]
[1753206372126,4.92805046,202.92,202.91,1e-08]
[1753206372323,19.68271452,202.92,202.91,1e-08]
[1753206372834,20.34271452,202.92,202.91,1e-08]
[1753206373201,37.12739849,202.92,202.91,1e-08]
[1753206373816,5.58805046,202.92,202.91,1e-08]
[1753206373999,46.34271452,202.92,202.91,1e-08]
[1753206374200,4.92805046,202.92,202.91,1e-08]
[1753206374396,46.34271452,202.92,202.91,1e-08]
[1753206376826,30.92805046,202.92,202.91,1e-08]
[1753206377415,45.68271452,202.92,202.91,1e-08]
[1753206377913,26.0,202.89,202.86,1e-08]
[1753206378222,16.40826406,202.87,202.86,1e-08]
[1753206378637,26.0,202.84,202.82,1e-08]
[1753206378803,14.75466406,202.83,202.82,1e-08]
[1753206379007,15.45466406,202.83,202.82,1e-08]
[1753206379231,36.35752541,202.83,202.82,1e-08]
[1753206379432,31.41025469,202.83,202.82,1e-08]
[1753206379613,9.80739334,202.75,202.71,11.4]
[1753206379813,9.80739334,202.73,202.67,12.11]
[1753206380129,4.93291239,202.72,202.67,12.11]
[1753206380306,9.80739334,202.69,202.64,12.11]
[1753206380508,9.80739334,202.69,202.65,0.71]
[1753206381031,9.80739334,202.7,202.63,21.20739334]
[1753206381235,9.80739334,202.7,202.64,10.51739334]
[1753206381542,14.80807941,202.7,202.64,15.51807941]
[1753206381732,4.93291239,202.72,202.65,14.80807941]
[1753206381939,13.03049766,202.75,202.69,14.80807941]
[1753206381940,14.80807941,202.75,202.69,14.80807941]
[1753206382231,4.93072333,202.81,202.74,14.80807941]
[1753206382431,4.93072333,202.81,202.75,14.80807941]
[1753206382432,19.73880274,202.81,202.75,14.80807941]
[1753206382622,4.93049131,202.82,202.77,14.80807941]
[1753206382933,14.80807941,202.85,202.79,14.80807941]
[1753206383130,18.6274907,202.88,202.8,14.80807941]
[1753206383442,14.80807941,202.86,202.8,14.80807941]
[1753206383742,19.73734445,202.87,202.81,14.80807941]
[1753206383920,4.92902208,202.88,202.81,14.80807941]
[1753206384230,4.92902208,202.88,202.82,15.51807941]
[1753206384730,19.73710149,202.88,202.82,15.51807941]
[1753206384945,4.92902208,202.88,202.83,14.80807941]
[1753206385147,4.92902208,202.88,202.84,0.71]
[1753206385309,7.2024,202.93,202.85,0.71]
[1753206385514,14.80807941,202.91,202.85,0.71]
[1753206385938,4.92805046,202.92,202.85,15.51807941]
[1753206386233,19.73612987,202.92,202.86,14.80807941]
[1753206386437,4.92805046,202.92,202.86,14.80807941]
[1753206386639,4.92805046,202.92,202.87,14.80807941]
[1753206386935,4.92782293,202.93,202.88,15.51807941]
[1753206387130,4.92782293,202.93,202.89,15.51807941]
[1753206387339,4.92782293,202.93,202.89,0.71]
[1753206387634,4.92782293,202.93,202.89,15.51807941]
[1753206387821,4.92782293,202.93,202.9,0.71]
[1753206388018,14.80807941,202.91,202.83,12.11]
[1753206388234,0.7,202.92,202.85,14.80807941]
[1753206388431,14.80807941,202.92,202.86,14.80807941]
[1753206388609,32.05542138,202.93,202.84,0.71]
[1753206388816,14.80807941,202.88,202.82,14.80807941]
[1753206389015,14.80807941,202.85,202.77,2.3334]
[1753206389221,14.80807941,202.83,202.77,15.51807941]
[1753206389936,14.80807941,202.82,202.77,0.71]
[1753206390139,4.93072333,202.81,202.78,0.71]
[1753206390443,4.93072333,202.81,202.75,15.51807941]
[1753206390818,14.80807941,202.8,202.75,0.71]
[1753206391136,32.06561108,202.81,202.76,0.71]
[1753206391339,32.06561108,202.81,202.7,41.76]
[1753206391340,14.80807941,202.79,202.7,41.76]
[1753206391542,17.25753167,202.81,202.72,14.80807941]
[1753206391843,17.25753167,202.81,202.7,29.65]
[1753206391844,14.80807941,202.8,202.74,14.80807941]
[1753206392036,14.80807941,202.8,202.73,0.71]
[1753206392037,4.93120962,202.79,202.73,15.51807941]
[1753206392242,14.80807941,202.77,202.73,12.11]
[1753206392615,4.93120962,202.79,202.74,0.71]
[1753206392821,14.80807941,202.84,202.78,14.80807941]
[1753206393118,14.80807941,202.84,202.78,26.20807941]
[1753206394031,4.93023714,202.83,202.78,11.4]
[1753206394225,14.80807941,202.79,202.78,11.4]
[1753206394427,15.50807941,202.79,202.73,11.4]
[1753206394642,14.80807941,202.74,202.71,11.4]
[1753206394826,14.80807941,202.74,202.68,26.91807941]
[1753206395425,14.80807941,202.75,202.69,14.80807941]
[1753206395621,14.80807941,202.77,202.71,14.80807941]
[1753206395820,14.80807941,202.73,202.68,11.4]
[1753206396023,26.0,202.77,202.62,6.2478]
[1753206396024,4.93388592,202.68,202.64,0.71]
[1753206396241,4.93388592,202.68,202.62,14.80807941]
[1753206396242,14.80807941,202.67,202.61,0.71]
[1753206396447,14.80807941,202.64,202.58,26.91807941]
[1753206396953,14.80807941,202.64,202.58,12.11]
[1753206398246,14.80807941,202.62,202.56,14.80807941]
[1753206398455,14.80807941,202.6,202.54,15.51807941]
[1753206398945,14.80807941,202.58,202.51,12.14]
[1753206399127,14.80807941,202.58,202.51,26.94807941]
[1753206399338,40.80807941,202.6,202.53,14.80807941]
[1753206399851,40.80807941,202.6,202.53,14.83807941]
[1753206400178,14.80807941,202.62,202.56,14.80807941]
[1753206400447,14.80807941,202.64,202.58,14.80807941]
[1753206400638,4.93434087,202.67,202.59,14.80807941]
[1753206400639,14.80807941,202.65,202.59,14.80807941]
[1753206401142,14.80807941,202.62,202.57,0.71]
[1753206401344,14.80807941,202.58,202.53,0.74]
[1753206401552,14.80807941,202.56,202.53,0.03]
[1753206402263,14.80807941,202.58,202.53,0.03]
[1753206402552,15.50807941,202.64,202.57,14.80807941]
[1753206402750,14.80807941,202.63,202.56,0.71]
[1753206402932,14.80807941,202.63,202.57,14.80807941]
[1753206403128,14.80807941,202.63,202.56,15.51807941]
[1753206403336,14.80807941,202.63,202.57,14.80807941]
[1753206403727,14.80807941,202.61,202.57,0.03]
[1753206403937,14.80807941,202.6,202.57,0.03]
[1753206404361,19.7441572,202.59,202.57,0.03]
[1753206404560,14.80807941,202.58,202.57,0.03]
[1753206404750,15.50807941,202.58,202.57,0.03]
[1753206405267,4.93607779,202.59,202.57,0.03]
[1753206405433,19.7441572,202.59,202.57,0.03]
[1753206405632,29.82294555,202.63,202.57,0.03]
[1753206405633,14.80807941,202.63,202.57,0.03]
[1753206405848,14.80807941,202.62,202.57,29.63]
[1753206406157,14.80807941,202.62,202.57,30.34]
[1753206406364,4.93559054,202.61,202.57,0.03]
[1753206406867,26.0,202.65,202.59,14.80807941]
[1753206407041,26.0,202.65,202.6,14.80807941]
[1753206407360,14.80807941,202.66,202.6,14.80807941]
[1753206407559,14.80807941,202.67,202.61,14.80807941]
[1753206407860,12.33279063,202.72,202.63,14.80807941]
[1753206407861,4.9336425,202.69,202.63,14.80807941]
[1753206408063,14.80807941,202.67,202.61,14.80807941]
[1753206408250,14.80807941,202.66,202.6,14.80807941]
[1753206408448,4.93461633,202.65,202.6,14.80807941]
[1753206408632,4.93461633,202.65,202.6,15.50807941]
[1753206408839,19.74269574,202.65,202.6,0.7]
[1753206409137,14.80807941,202.63,202.57,15.53807941]
[1753206409346,14.80807941,202.63,202.57,30.33]
[1753206410061,30.93461633,202.65,202.6,14.80807941]
[1753206410362,4.93315573,202.71,202.64,44.40807941]
[1753206410564,4.93315573,202.71,202.66,14.80807941]
[1753206410866,4.93315573,202.71,202.67,14.80807941]
[1753206411066,26.0,202.72,202.68,14.80807941]
[1753206411269,4.93287636,202.73,202.68,14.80807941]
[1753206411471,14.80807941,202.71,202.64,14.80807941]
[1753206411865,14.80807941,202.7,202.64,14.80807941]
[1753206412464,4.9336425,202.69,202.64,14.80807941]
[1753206413165,19.74172191,202.69,202.63,0.7]
[1753206413368,14.80807941,202.68,202.62,55.80807941]
[1753206413881,14.80807941,202.67,202.6,0.7]
[1753206414166,14.80807941,202.65,202.6,0.7]
[1753206414545,4.93485984,202.64,202.6,0.7]
[1753206415372,19.74293925,202.64,202.58,44.40807941]
[1753206415754,14.80807941,202.61,202.57,0.03]
[1753206416072,14.80807941,202.58,202.57,0.03]
[1753206416671,4.93632145,202.58,202.57,0.03]
[1753206416869,40.80807941,202.61,202.57,0.03]
[1753206417361,0.14216157,202.7,202.58,0.7]
[1753206417560,0.14216157,202.7,202.63,14.80807941]
[1753206417561,4.93388592,202.68,202.63,14.80807941]
[1753206417955,4.93388592,202.68,202.6,0.7]
[1753206417956,14.80807941,202.67,202.61,14.80807941]
[1753206418565,14.80807941,202.67,202.6,0.7]
[1753206418566,19.74245225,202.66,202.59,44.40807941]
[1753206418766,14.80807941,202.63,202.58,11.4]
[1753206419072,14.80807941,202.61,202.57,0.73]
[1753206419273,14.80807941,202.58,202.57,0.03]
[1753206420356,14.80807941,202.6,202.57,0.03]
[1753206420664,4.93339911,202.7,202.63,11.4]
[1753206420867,14.80807941,202.66,202.63,11.4]
[1753206421051,4.93339911,202.7,202.65,14.80807941]
[1753206421251,14.80807941,202.72,202.66,15.50807941]
[1753206421472,1.6071,202.74,202.66,15.50807941]
[1753206421473,16.41517941,202.74,202.68,14.80807941]
[1753206421669,16.41517941,202.74,202.66,0.7]
[1753206421670,14.80807941,202.71,202.66,12.1]
[1753206421858,15.47807941,202.71,202.66,11.4]
[1753206422058,14.80807941,202.67,202.66,11.4]
[1753206422270,15.47807941,202.67,202.59,0.7]
[1753206422480,4.93534695,202.62,202.59,11.4]
[1753206422809,14.80807941,202.61,202.57,11.43]
[1753206422981,14.80807941,202.61,202.57,0.03]
[1753206423278,19.74342636,202.62,202.57,0.03]
[1753206424255,14.80807941,202.61,202.57,0.03]
[1753206424772,19.74391356,202.6,202.57,0.03]
[1753206424983,14.80807941,202.58,202.57,0.03]
[1753206425158,5.60583415,202.6,202.57,0.03]
[1753206425480,40.80807941,202.59,202.57,0.03]
[1753206425856,15.47807941,202.58,202.57,0.03]
[1753206426255,40.80807941,202.59,202.57,0.03]
[1753206426676,4.93632145,202.58,202.57,0.03]
[1753206428161,20.41440086,202.58,202.57,0.03]
[1753206428762,26.0,202.55,202.53,0.03]
[1753206429072,16.78468397,202.61,202.54,45.10807941]
[1753206429073,4.93559054,202.61,202.54,45.10807941]
[1753206429256,4.93559054,202.61,202.56,14.80807941]
[1753206429463,14.80807941,202.59,202.53,26.23807941]
[1753206430165,14.80807941,202.57,202.53,101.43]
[1753206430575,4.93559054,202.61,202.53,116.23807941]
[1753206430757,19.74366995,202.61,202.55,14.80807941]
[1753206430957,14.80807941,202.59,202.53,116.23807941]
[1753206431570,14.80807941,202.6,202.54,14.80807941]
[1753206431769,14.80807941,202.58,202.53,101.43]
[1753206432081,14.80807941,202.55,202.53,90.03]
[1753206432294,14.80807941,202.55,202.53,65.04772384]
[1753206432295,32.26276338,202.54,202.53,65.04772384]
[1753206432470,31.73492495,202.54,202.53,7.20411354]
[1753206432659,31.73492495,202.54,202.49,0.03]
[1753206432660,16.78468397,202.51,202.49,0.03]
[1753206432863,26.0,202.52,202.48,0.03]
[1753206432864,19.74635101,202.5,202.48,0.03]
[1753206433081,14.80807941,202.49,202.48,0.03]
[1753206433282,19.74635101,202.5,202.48,0.03]
[1753206433490,14.80807941,202.54,202.48,15.53807941]
[1753206433787,32.0843984,202.59,202.52,14.80807941]
[1753206433957,32.0843984,202.59,202.52,12.1]
[1753206434170,4.19497266,202.62,202.56,14.80807941]
[1753206434485,20.97957941,202.65,202.59,14.80807941]
[1753206434680,4.93485984,202.64,202.59,14.80807941]
[1753206434879,14.80807941,202.67,202.61,14.80807941]
[1753206435077,14.80807941,202.68,202.62,14.80807941]
[1753206435283,19.74242308,202.67,202.62,0.7]
[1753206435682,14.80807941,202.66,202.62,0.7]
[1753206435876,4.93434367,202.67,202.58,4.93630521]
[1753206435877,14.80807941,202.64,202.58,0.7]
[1753206436079,14.80807941,202.65,202.58,15.50807941]
[1753206436675,14.80807941,202.64,202.58,15.50807941]
[1753206436877,4.93510339,202.63,202.58,0.7]
[1753206437078,14.80807941,202.62,202.55,15.50807941]
[1753206437877,14.80807941,202.61,202.55,0.7]
[1753206438079,14.80807941,202.62,202.55,15.50807941]
[1753206438275,14.80807941,202.62,202.52,34.5376899]
[1753206438276,26.0,202.6,202.52,0.7]
[1753206438475,14.80807941,202.56,202.52,0.7]
[1753206438695,14.80807941,202.56,202.48,0.03]
[1753206438696,14.80807941,202.53,202.48,0.03]
[1753206438901,14.80807941,202.5,202.48,0.03]
[1753206439099,14.80807941,202.49,202.48,0.03]
[1753206440304,40.80807941,202.44,202.43,1e-08]
[1753206440905,45.74781464,202.44,202.43,1e-08]
[1753206442726,4.93945405,202.46,202.43,1e-08]
[1753206442884,4.9390033,202.47,202.43,0.70000001]
[1753206443088,19.74708271,202.47,202.43,0.70000001]
[1753206443319,4.9390033,202.47,202.43,0.70000001]
[1753206443599,19.74708271,202.47,202.44,0.7]
[1753206443804,19.74708271,202.47,202.43,1e-08]
[1753206443805,40.80807941,202.45,202.43,1e-08]
[1753206443994,14.80807941,202.44,202.43,1e-08]
[1753206444210,40.80807941,202.44,202.43,1e-08]
[1753206445114,45.74781464,202.44,202.43,1e-08]
[1753206445893,51.34057802,202.44,202.43,1e-08]
[1753206446094,51.48273959,202.44,202.43,1e-08]
[1753206447627,45.74781464,202.44,202.43,1e-08]
[1753206448117,14.80807941,202.45,202.43,1e-08]
[1753206449220,43.28565783,202.48,202.43,1e-08]
[1753206449221,51.34057802,202.44,202.43,1e-08]
[1753206449422,51.48273959,202.44,202.43,1e-08]
[1753206450248,45.74781464,202.44,202.43,1e-08]
[1753206450542,4.93973523,202.44,202.43,0.70000001]
[1753206450711,4.93973523,202.44,202.43,1e-08]
[1753206450712,36.67466018,202.44,202.43,1e-08]
[1753206452311,51.48273959,202.44,202.43,1e-08]
[1753206453244,51.48273959,202.44,202.38,0.03]
[1753206453245,16.78468397,202.4,202.38,0.03]
[1753206453449,16.78468397,202.4,202.37,0.1]
[1753206453450,19.74903499,202.39,202.37,0.1]
[1753206453607,4.94095558,202.39,202.37,0.1]
[1753206453814,14.80807941,202.38,202.37,0.1]
[1753206454440,14.80807941,202.39,202.37,0.8]
[1753206454610,12.34929028,202.45,202.37,0.8]
[1753206454611,14.80807941,202.41,202.38,0.7]
[1753206454940,14.80807941,202.41,202.37,0.1]
[1753206454941,14.80807941,202.43,202.39,0.7]
[1753206455147,19.74748929,202.46,202.39,15.50807941]
[1753206455436,4.93940988,202.46,202.4,15.50807941]
[1753206455606,14.80807941,202.42,202.4,0.7]
[1753206456111,14.80807941,202.43,202.4,0.7]
[1753206456647,14.80807941,202.44,202.4,0.7]